fUST/lending_fUST_20250619
["ID","MTS","AMOUNT","RATE_DAILY","PERIOD"]
[366546737,1750317038752,-460.0,0.00021917,6]
[366546739,1750317038761,-460.0,0.00021917,6]
[366546741,1750317038770,-463.63103533,0.00021917,6]
[366546743,1750317038780,-460.0,0.00021917,6]
[366546745,1750317038789,-592.21,0.00021917,6]
[366546747,1750317038799,-460.0,0.00021917,6]
[366546749,1750317038808,-645.44,0.00021917,6]
[366546751,1750317038817,-460.0,0.00021917,6]
[366546753,1750317038826,-556.65,0.00021917,6]
[366546755,1750317038836,-476.0,0.00021917,6]
[366546757,1750317038847,-460.0,0.00021917,6]
[366546759,1750317038857,-460.0,0.00021917,6]
[366546761,1750317038866,-460.0,0.00021917,6]
[366546763,1750317038876,-490.52,0.00021917,6]
[366546765,1750317038886,-460.0,0.00021917,6]
[366546767,1750317038895,-1459.78,0.00021917,6]
[366546769,1750317038904,-3609.47,0.00021917,6]
[366546771,1750317038914,-370.97259056,0.00021917,6]
[366546773,1750317038924,-460.0,0.00021917,6]
[366546775,1750317038934,-3245.87,0.00021917,6]
[366546777,1750317038943,-460.0,0.00021917,6]
[366546779,1750317038953,-400.70203168,0.00021917,6]
[366546781,1750317038962,-460.0,0.00021917,6]
[366546783,1750317038972,-460.0,0.00021917,6]
[366546785,1750317038981,-460.0,0.00021917,6]
[366546787,1750317038990,-360.0,0.00021917,6]
[366546789,1750317038999,-385.49434132,0.00021917,6]
[366546791,1750317039008,-909.09,0.00021917,6]
[366546793,1750317039017,-272.74694086,0.00021917,6]
[366546794,1750317039026,-460.0,0.00021917,6]
[366546796,1750317039035,-354.28826946,0.00021917,6]
[366546798,1750317039045,-2508.31,0.00021917,6]
[366546801,1750317039055,-842.25,0.00021917,6]
[366546802,1750317039064,-460.0,0.00021917,6]
[366546804,1750317039074,-4362.78,0.00021917,6]
[366546806,1750317039083,-460.0,0.00021917,6]
[366546808,1750317039093,-1047.58,0.00021917,6]
[366546810,1750317039102,-460.0,0.00021917,6]
[366546812,1750317039111,-460.0,0.00021917,6]
[366546814,1750317039121,-460.0,0.00021917,6]
[366546816,1750317039130,-460.0,0.00021917,6]
[366546818,1750317039140,-460.0,0.00021917,6]
[366546820,1750317039149,-3041.78,0.00021917,6]
[366546822,1750317039158,-551.3,0.00021917,6]
[366546824,1750317039168,-460.0,0.00021917,6]
[366546826,1750317039177,-435.38845963,0.00021917,6]
[366546828,1750317039187,-460.0,0.00021917,6]
[366546830,1750317039196,-422.0,0.00021917,6]
[366546831,1750317039205,-460.0,0.00021917,6]
[366546833,1750317039214,-460.0,0.00021917,6]
[366546835,1750317039223,-460.0,0.00021917,6]
[366546837,1750317039232,-151.38447872,0.00021917,6]
[366546839,1750317039242,-151.41753838,0.00021917,6]
[366546841,1750317039251,-500.0,0.00021917,6]
[366546843,1750317039260,-460.0,0.00021917,6]
[366546845,1750317039269,-460.0,0.00021917,6]
[366546847,1750317039279,-500.0,0.00021917,6]
[366546848,1750317039288,-460.0,0.00021917,6]
[366546850,1750317039298,-1422.34,0.00021917,6]
[366546852,1750317039307,-460.0,0.00021917,6]
[366546854,1750317039316,-344.96000628,0.00021917,6]
[366546856,1750317039325,-1472.18,0.00021917,6]
[366546858,1750317039335,-231.04509601,0.00021917,6]
[366546860,1750317039344,-669.9,0.00021917,6]
[366546862,1750317039353,-500.0,0.00021917,6]
[366546864,1750317039364,-1214.65,0.00021917,6]
[366546866,1750317039374,-460.0,0.00021917,6]
[366546868,1750317039384,-198.58624684,0.00021917,6]
[366546870,1750317039393,-460.0,0.00021917,6]
[366546872,1750317039402,-956.02,0.00021917,6]
[366546874,1750317039412,-460.0,0.00021917,6]
[366546876,1750317039422,-151.0,0.00021917,6]
[366546878,1750317039431,-177.04143942,0.00021917,6]
[366546880,1750317039440,-151.0,0.00021917,6]
[366546882,1750317039450,-460.0,0.00021917,6]
[366546884,1750317039458,-474.21,0.00021917,6]
[366546886,1750317039468,-460.0,0.00021917,6]
[366546888,1750317039477,-460.0,0.00021917,6]
[366546891,1750317039487,-460.0,0.00021917,6]
[366546894,1750317039496,-460.0,0.00021917,6]
[366546897,1750317039506,-2201.55,0.00021917,6]
[366546900,1750317039515,-1308.01,0.00021917,6]
[366546903,1750317039525,-546.01,0.00021917,6]
[366546906,1750317039534,-460.0,0.00021917,6]
[366546910,1750317039544,-500.0,0.00021917,2]
[366546913,1750317039554,-202.74238823,0.00021917,6]
[366546916,1750317039563,-460.0,0.00021917,6]
[366546919,1750317039573,-460.0,0.00021917,6]
[366546922,1750317039582,-460.0,0.00021917,6]
[366546925,1750317039591,-460.0,0.00021917,6]
[366546928,1750317039600,-460.0,0.00021917,6]
[366546930,1750317039610,-460.0,0.00021917,6]
[366546932,1750317039619,-460.0,0.00021917,6]
[366546935,1750317039629,-460.0,0.00021917,6]
[366546938,1750317039638,-460.0,0.00021917,6]
[366546941,1750317039648,-203.80378578,0.00021917,2]
[366546944,1750317039657,-300.0,0.00021917,2]
[366546947,1750317039666,-1372.0,0.00021917,6]
[366546950,1750317039675,-460.0,0.00021917,6]
[366546953,1750317039685,-460.0,0.00021917,6]
[366546956,1750317039694,-387.40985349,0.00021917,6]
[366546959,1750317039703,-500.0,0.00021917,6]
[366546962,1750317039713,-2296.9,0.00021917,6]
[366546965,1750317039723,-340.0,0.00021917,6]
[366546968,1750317039733,-151.0,0.00021917,6]
[366546971,1750317039742,-151.0,0.00021917,6]
[366546974,1750317039752,-500.0,0.00021917,6]
[366546976,1750317039762,-151.0,0.00021917,6]
[366546979,1750317039771,-460.0,0.00021917,6]
[366546981,1750317039781,-773.72,0.00021917,6]
[366546983,1750317039792,-460.0,0.00021917,6]
[366546985,1750317039801,-1314.1,0.00021917,6]
[366546987,1750317039812,-574.04,0.00021917,6]
[366546989,1750317039822,-2709.22,0.00021917,6]
[366546991,1750317039831,-151.0,0.00021917,6]
[366546993,1750317039843,-515.29121936,0.00021917,2]
[366546995,1750317039853,-460.0,0.00021917,6]
[366546996,1750317039864,-460.0,0.00021917,6]
[366546997,1750317039874,-318.83716507,0.00021917,6]
[366546998,1750317039883,-779.76,0.00021917,6]
[366546999,1750317039893,-151.0,0.00021917,6]
[366547000,1750317039903,-550.9032418,0.00021917,6]
[366547002,1750317039912,-460.0,0.00021917,6]
[366547004,1750317039922,-460.0,0.00021917,6]
[366547007,1750317039931,-460.0,0.00021917,6]
[366547009,1750317039940,-1457.47,0.00021917,6]
[366547012,1750317039950,-2546.84,0.00021917,6]
[366547015,1750317039959,-575.73,0.00021917,6]
[366547018,1750317039968,-559.24,0.00021917,6]
[366547021,1750317039978,-460.0,0.00021917,6]
[366547024,1750317039988,-460.0,0.00021917,6]
[366547027,1750317039997,-151.0,0.00021918,2]
[366547030,1750317040007,-151.0,0.00021918,2]
[366547033,1750317040016,-151.0,0.00021918,2]
[366547036,1750317040026,-151.0,0.00021918,2]
[366547039,1750317040035,-151.0,0.00021918,2]
[366547042,1750317040044,-151.0,0.00021918,2]
[366547045,1750317040053,-151.0,0.00021918,2]
[366547048,1750317040062,-151.0,0.00021918,2]
[366547051,1750317040071,-151.0,0.00021918,2]
[366547054,1750317040081,-151.0,0.00021918,2]
[366547056,1750317040090,-151.0,0.00021918,2]
[366547060,1750317040100,-235.10670729,0.00021918,2]
[366547061,1750317040109,-336.46,0.00021923,3]
[366547064,1750317040119,-168.23,0.00021923,3]
[366547068,1750317040128,-504.72,0.00021923,3]
[366547071,1750317040138,-118593.08775312,0.00021933,2]
[366547073,1750317040147,-151.0,0.00021938,2]
[366547076,1750317040156,-5000.0,0.00021938,2]
[366547079,1750317040165,-151.0,0.00021938,2]
[366547082,1750317040174,-151.0,0.00021938,2]
[366547085,1750317040183,-151.0,0.00021938,2]
[366547088,1750317040193,-164.07875614,0.00021938,2]
[366547091,1750317040202,-1688.0,0.00021938,2]
[366547094,1750317040211,-151.0,0.00021938,2]
[366547097,1750317040220,-500.0,0.00021938,2]
[366547100,1750317040229,-151.0,0.00021938,2]
[366547103,1750317040239,-3802.22009986,0.00021938,2]
[366547106,1750317040249,-500.0,0.00021938,2]
[366547109,1750317040258,-500.0,0.00021938,2]
[366547112,1750317040268,-500.0,0.00021938,2]
[366547115,1750317040277,-151.0,0.00021938,2]
[366547118,1750317040286,-500.0,0.00021938,2]
[366547121,1750317040295,-500.0,0.00021938,2]
[366547124,1750317040305,-151.0,0.00021938,2]
[366547127,1750317040313,-500.0,0.00021938,2]
[366547130,1750317040323,-500.0,0.00021938,2]
[366547133,1750317040332,-500.0,0.00021938,2]
[366547136,1750317040341,-500.0,0.00021938,2]
[366547139,1750317040350,-210.8812712,0.00021938,2]
[366547140,1750317040359,-500.0,0.00021938,2]
[366547143,1750317040368,-500.0,0.00021938,2]
[366547147,1750317040378,-151.0,0.00021938,2]
[366547150,1750317040387,-500.0,0.00021938,2]
[366547152,1750317040397,-500.0,0.00021938,2]
[366547155,1750317040406,-500.0,0.00021938,2]
[366547158,1750317040416,-151.0,0.00021938,2]
[366547162,1750317040426,-500.0,0.00021938,2]
[366547164,1750317040435,-500.0,0.00021938,2]
[366547167,1750317040444,-500.0,0.00021938,2]
[366547170,1750317040453,-151.0,0.00021938,2]
[366547173,1750317040463,-500.0,0.00021938,2]
[366547176,1750317040472,-500.0,0.00021938,2]
[366547179,1750317040483,-500.0,0.00021938,2]
[366547182,1750317040492,-151.0,0.00021938,2]
[366547185,1750317040501,-500.0,0.00021938,2]
[366547188,1750317040510,-500.0,0.00021938,2]
[366547191,1750317040519,-500.0,0.00021938,2]
[366547194,1750317040528,-151.0,0.00021938,2]
[366547197,1750317040538,-500.0,0.00021938,2]
[366547200,1750317040547,-25000.0,0.00021938,2]
[366547203,1750317040557,-500.0,0.00021938,2]
[366547206,1750317040566,-500.0,0.00021938,2]
[366547209,1750317040575,-151.0,0.00021938,2]
[366547212,1750317040585,-500.0,0.00021938,2]
[366547215,1750317040594,-20456.686893,0.00021938,2]
[366547218,1750317040604,-500.0,0.00021938,2]
[366547221,1750317040613,-500.0,0.00021938,2]
[366547224,1750317040622,-151.0,0.00021938,2]
[366547227,1750317040631,-500.0,0.00021938,2]
[366547230,1750317040640,-500.0,0.00021938,2]
[366547232,1750317040650,-171.96145907,0.00021938,2]
[366547234,1750317040659,-500.0,0.00021938,2]
[366547236,1750317040668,-500.0,0.00021938,2]
[366547238,1750317040677,-151.0,0.00021938,2]
[366547260,1750317040801,-500.0,0.00021938,2]
[366547263,1750317040811,-500.0,0.00021938,2]
[366547266,1750317040821,-151.0,0.00021938,2]
[366547269,1750317040830,-500.0,0.00021938,2]
[366547272,1750317040839,-201.77647067,0.00021938,2]
[366547275,1750317040848,-500.0,0.00021938,2]
[366547278,1750317040859,-500.0,0.00021938,2]
[366547281,1750317040871,-500.0,0.00021938,2]
[366547284,1750317040880,-207.4,0.00021938,2]
[366547287,1750317040890,-422.0,0.00021944,6]
[366547290,1750317040899,-500.0,0.00021944,6]
[366547293,1750317040910,-500.0,0.00021944,6]
[366547296,1750317040919,-500.0,0.00021944,6]
[366547299,1750317040928,-193.70892126,0.00021944,6]
[366547302,1750317040938,-267.57688465,0.00021944,6]
[366547305,1750317040948,-1372.0,0.00021944,6]
[366547308,1750317040957,-500.0,0.00021944,6]
[366547311,1750317040966,-151.0,0.00021944,6]
[366547313,1750317040975,-151.0,0.00021944,6]
[366547315,1750317040985,-500.0,0.00021944,6]
[366547317,1750317040994,-151.0,0.00021944,6]
[366547319,1750317041004,-151.0,0.00021944,6]
[366547321,1750317041014,-160.0,0.00021967,2]
[366547323,1750317041023,-424.78309573,0.00021967,2]
[366547325,1750317041032,-845.93775772,0.00021967,2]
[366547327,1750317041041,-422.0,0.00021972,6]
[366547329,1750317041051,-500.0,0.00021972,6]
[366547331,1750317041060,-500.0,0.00021972,6]
[366547334,1750317041070,-500.0,0.00021972,6]
[366547337,1750317041079,-1372.0,0.00021972,6]
[366547340,1750317041089,-500.0,0.00021972,6]
[366547343,1750317041098,-228.2560716,0.00021972,6]
[366547346,1750317041108,-199.23961877,0.00021972,6]
[366547349,1750317041117,-500.0,0.00021972,6]
[366547352,1750317041127,-151.0,0.00021972,6]
[366547356,1750317041137,-204.21385254,0.00021972,6]
[366547358,1750317041146,-500.0,0.00021973,2]
[366547362,1750317041156,-549.98598533,0.00021973,2]
[366547364,1750317041165,-502.75230945,0.00021973,2]
[366547368,1750317041174,-1703.55011971,0.00021993,2]
[366547371,1750317041183,-308413.49795806,0.00021999,2]
[366547375,1750317041200,-10627.39960132,0.00021999,2]
[366547382,1750317041225,-260.1,0.00021828,10]
[366547385,1750317041235,-117887.97559062,0.00021999,2]
[366547388,1750317041244,-422.0,0.00021999,6]
[366547391,1750317041253,-500.0,0.00021999,6]
[366547393,1750317041262,-500.0,0.00021999,6]
[366547396,1750317041272,-500.0,0.00021999,6]
[366547399,1750317041281,-1372.0,0.00021999,6]
[366547402,1750317041290,-500.0,0.00021999,6]
[366547405,1750317041299,-500.0,0.00021999,6]
[366547408,1750317041308,-152.5341841,0.00021999,6]
[366547411,1750317041318,-18697.32488168,0.00022,2]
[366547414,1750317041327,-75901.5,0.00022,7]
[366547417,1750317041336,-213.47708638,0.00022,7]
[366547420,1750317041345,-151.0,0.00022,7]
[366547423,1750317041354,-168.0,0.00022,2]
[366547426,1750317041363,-422.0,0.00022027,6]
[366547429,1750317041372,-500.0,0.00022027,6]
[366547432,1750317041381,-500.0,0.00022027,6]
[366547434,1750317041391,-500.0,0.00022027,6]
[366547438,1750317041401,-1372.0,0.00022027,6]
[366547440,1750317041411,-500.0,0.00022027,6]
[366547443,1750317041420,-500.0,0.00022027,6]
[366547445,1750317041429,-422.0,0.00022054,6]
[366547446,1750317041438,-500.0,0.00022054,6]
[366547449,1750317041447,-500.0,0.00022054,6]
[366547451,1750317041457,-500.0,0.00022054,6]
[366547454,1750317041466,-1372.0,0.00022054,6]
[366547456,1750317041475,-500.0,0.00022054,6]
[366547459,1750317041484,-500.0,0.00022054,6]
[366547463,1750317041494,-723.0,0.00022069,2]
[366547465,1750317041503,-422.0,0.00022081,6]
[366547468,1750317041512,-500.0,0.00022081,6]
[366547471,1750317041521,-500.0,0.00022081,6]
[366547474,1750317041531,-500.0,0.00022081,6]
[366547477,1750317041539,-1372.0,0.00022081,6]
[366547480,1750317041549,-500.0,0.00022081,6]
[366547483,1750317041558,-500.0,0.00022081,6]
[366547486,1750317041567,-422.0,0.00022109,6]
[366547489,1750317041576,-500.0,0.00022109,6]
[366547492,1750317041585,-500.0,0.00022109,6]
[366547495,1750317041594,-500.0,0.00022109,6]
[366547498,1750317041603,-1372.0,0.00022109,6]
[366547501,1750317041612,-500.0,0.00022109,6]
[366547504,1750317041621,-500.0,0.00022109,6]
[366547506,1750317041631,-422.0,0.00022136,6]
[366547509,1750317041640,-232.26133193,0.00022136,6]
[366547512,1750317041649,-500.0,0.00022136,6]
[366547515,1750317041659,-500.0,0.00022136,6]
[366547518,1750317041668,-1372.0,0.00022136,6]
[366547522,1750317041679,-621.146023,0.00022136,6]
[366547525,1750317041688,-154.09503508,0.00022136,6]
[366547527,1750317041698,-212.3780276,0.00022163,7]
[366547530,1750317041708,-422.0,0.00022164,6]
[366547533,1750317041717,-500.0,0.00022164,6]
[366547536,1750317041727,-500.0,0.00022164,6]
[366547539,1750317041736,-1372.0,0.00022164,6]
[366547542,1750317041745,-422.0,0.00022191,6]
[366547545,1750317041754,-500.0,0.00022191,6]
[366547548,1750317041764,-500.0,0.00022191,6]
[366547551,1750317041773,-1372.0,0.00022191,6]
[366547554,1750317041782,-460.0,0.00022191,6]
[366547557,1750317041791,-460.0,0.00022191,6]
[366547560,1750317041801,-460.0,0.00022191,6]
[366547563,1750317041810,-460.0,0.00022191,6]
[366547566,1750317041819,-460.0,0.00022191,6]
[366547569,1750317041829,-375.13010161,0.00022191,6]
[366547572,1750317041838,-548.57,0.00022191,6]
[366547575,1750317041847,-495.59785271,0.00022191,6]
[366547578,1750317041858,-522.87,0.00022191,6]
[366547580,1750317041868,-460.0,0.00022191,6]
[366547583,1750317041877,-460.0,0.00022191,2]
[366547586,1750317041886,-253.95705016,0.00022191,6]
[366547589,1750317041895,-1474.45,0.00022191,6]
[366547592,1750317041904,-664.33,0.00022191,6]
[366547595,1750317041913,-460.0,0.00022191,6]
[366547598,1750317041923,-460.0,0.00022191,6]
[366547600,1750317041932,-460.0,0.00022191,6]
[366547603,1750317041941,-592.21,0.00022191,6]
[366547606,1750317041950,-460.0,0.00022191,6]
[366547609,1750317041959,-645.44,0.00022191,6]
[366547612,1750317041969,-460.0,0.00022191,6]
[366547615,1750317041979,-556.65,0.00022191,6]
[366547618,1750317041989,-476.0,0.00022191,6]
[366547621,1750317041998,-460.0,0.00022191,6]
[366547624,1750317042008,-460.0,0.00022191,6]
[366547627,1750317042017,-490.52,0.00022191,6]
[366547630,1750317042026,-1459.78,0.00022191,6]
[366547633,1750317042034,-3609.47,0.00022191,6]
[366547636,1750317042044,-3245.87,0.00022191,6]
[366547639,1750317042053,-386.54047025,0.00022191,6]
[366547642,1750317042062,-460.0,0.00022191,6]
[366547645,1750317042071,-909.09,0.00022191,6]
[366547648,1750317042080,-460.0,0.00022191,6]
[366547650,1750317042089,-2508.31,0.00022191,6]
[366547652,1750317042098,-842.25,0.00022191,6]
[366547654,1750317042107,-4362.78,0.00022191,6]
[366547656,1750317042116,-460.0,0.00022191,6]
[366547658,1750317042125,-1047.58,0.00022191,6]
[366547661,1750317042134,-460.0,0.00022191,6]
[366547664,1750317042143,-408.59589893,0.00022191,6]
[366547667,1750317042152,-460.0,0.00022191,6]
[366547670,1750317042162,-460.0,0.00022191,6]
[366547673,1750317042175,-3041.78,0.00022191,6]
[366547676,1750317042193,-551.3,0.00022191,6]
[366547679,1750317042203,-460.0,0.00022191,6]
[366547682,1750317042212,-460.0,0.00022191,6]
[366547685,1750317042221,-460.0,0.00022191,6]
[366547688,1750317042231,-460.0,0.00022191,6]
[366547691,1750317042240,-460.0,0.00022191,6]
[366547694,1750317042249,-222.43763718,0.00022191,6]
[366547697,1750317042258,-460.0,0.00022191,6]
[366547699,1750317042267,-1422.34,0.00022191,6]
[366547702,1750317042277,-460.0,0.00022191,6]
[366547705,1750317042286,-1472.18,0.00022191,6]
[366547708,1750317042295,-669.9,0.00022191,6]
[366547711,1750317042304,-1214.65,0.00022191,6]
[366547714,1750317042314,-460.0,0.00022191,6]
[366547717,1750317042323,-460.0,0.00022191,6]
[366547720,1750317042332,-956.02,0.00022191,6]
[366547723,1750317042341,-460.0,0.00022191,6]
[366547726,1750317042350,-460.0,0.00022191,6]
[366547729,1750317042359,-474.21,0.00022191,6]
[366547732,1750317042368,-457.84597645,0.00022191,6]
[366547735,1750317042377,-184.76156487,0.00022191,6]
[366547738,1750317042386,-460.0,0.00022191,6]
[366547741,1750317042395,-2201.55,0.00022191,6]
[366547744,1750317042404,-1308.01,0.00022191,6]
[366547747,1750317042413,-546.01,0.00022191,6]
[366547750,1750317042422,-378.92776624,0.00022191,2]
[366547753,1750317042432,-460.0,0.00022191,6]
[366547756,1750317042441,-460.0,0.00022191,6]
[366547759,1750317042450,-460.0,0.00022191,6]
[366547762,1750317042459,-460.0,0.00022191,6]
[366547765,1750317042468,-460.0,0.00022191,6]
[366547768,1750317042478,-460.0,0.00022191,6]
[366547771,1750317042488,-460.0,0.00022191,6]
[366547774,1750317042497,-300.0,0.00022191,2]
[366547777,1750317042506,-2296.9,0.00022191,6]
[366547780,1750317042517,-773.72,0.00022191,6]
[366547783,1750317042526,-300.0,0.00022191,6]
[366547787,1750317042536,-1314.1,0.00022191,6]
[366547790,1750317042545,-574.04,0.00022191,6]
[366547793,1750317042554,-2709.22,0.00022191,6]
[366547796,1750317042564,-460.0,0.00022191,6]
[366547799,1750317042573,-460.0,0.00022191,6]
[366547802,1750317042583,-779.76,0.00022191,6]
[366547805,1750317042592,-460.0,0.00022191,6]
[366547808,1750317042601,-460.0,0.00022191,6]
[366547811,1750317042610,-1457.47,0.00022191,6]
[366547814,1750317042619,-2546.84,0.00022191,6]
[366547817,1750317042628,-575.73,0.00022191,6]
[366547820,1750317042638,-559.24,0.00022191,6]
[366547823,1750317042647,-250.18097303,0.00022191,6]
[366547826,1750317042656,-1674.82492072,0.00022204,2]
[366547829,1750317042665,-422.0,0.00022218,6]
[366547832,1750317042675,-500.0,0.00022218,6]
[366547835,1750317042683,-200.03918375,0.00022218,6]
[366547837,1750317042693,-565.47422991,0.00022218,6]
[366548227,1750317045915,-460.0,0.00021917,6]
[366548229,1750317045925,-530.25,0.00021917,6]
[366548231,1750317045936,-538.91383131,0.00021917,6]
[366548233,1750317045946,-1000.19495298,0.00021917,6]
[366550820,1750317434851,1000.0,0.00022,30]
[366550821,1750317449247,1000.0,0.00022,30]
[366550822,1750317459258,628.24197856,0.000191,2]
[366550823,1750317468678,1000.0,0.000191,2]
[366550824,1750317481827,1000.0,0.00022,30]
[366550825,1750317494659,950.19,0.00022,30]
[366550826,1750317503711,950.19,0.00022,30]
[366550827,1750317511039,712.65,0.00022,30]
[366550828,1750317520615,593.87,0.00022,30]
[366550829,1750317536928,590.0,0.00022,30]
[366550830,1750317855988,4072.0,0.00019,2]
[366550869,1750318232251,-284.84,0.00019711,2]
[366550870,1750318232261,-186.43358,0.00019842,2]
[366550871,1750318232271,-4071.0,0.0002,2]
[366550872,1750318232281,-569.69,0.00020649,2]
[366550873,1750318232290,-1200.0,0.00020837,2]
[366550874,1750318232300,-300.0,0.00020837,2]
[366550875,1750318232309,-300.0,0.00020837,2]
[366550876,1750318232319,-2024.7388159,0.00020838,2]
[366550877,1750318232328,-500.0,0.00020838,2]
[366550878,1750318232338,-500.0,0.00020838,2]
[366550879,1750318232347,-421.91767986,0.00020838,2]
[366550880,1750318232356,-375.76217443,0.00020838,2]
[366550881,1750318232366,-500.0,0.00020838,2]
[366550882,1750318232375,-401.8699185,0.00020838,2]
[366550883,1750318232385,-300.0,0.00020839,2]
[366550884,1750318232394,-153.947,0.00020842,2]
[366550885,1750318232404,-2178.55852984,0.00020843,2]
[366550887,1750318238375,-22721.44147016,0.00020843,2]
[366550888,1750318238385,-218.72761168,0.00021397,2]
[366550889,1750318238395,-500.0,0.00021497,2]
[366550890,1750318238405,-500.0,0.00021497,2]
[366550891,1750318238415,-500.0,0.00021497,2]
[366550892,1750318238425,-500.0,0.00021497,2]
[366550893,1750318238434,-500.0,0.00021497,2]
[366550894,1750318238444,-500.0,0.00021497,2]
[366550895,1750318238453,-500.0,0.00021497,2]
[366550896,1750318238473,-500.0,0.00021497,2]
[366550897,1750318238484,-500.0,0.00021497,2]
[366550898,1750318238493,-500.0,0.00021497,2]
[366550899,1750318238503,-500.0,0.00021497,2]
[366550900,1750318238513,-500.0,0.00021497,2]
[366550901,1750318238523,-500.0,0.00021497,2]
[366550902,1750318238532,-500.0,0.00021497,2]
[366550903,1750318238545,-500.0,0.00021497,2]
[366550904,1750318238555,-500.0,0.00021497,2]
[366550905,1750318238565,-437.82714967,0.00021497,2]
[366550906,1750318238575,-500.0,0.00021497,2]
[366550907,1750318238586,-500.0,0.00021497,2]
[366550908,1750318238597,-500.0,0.00021497,2]
[366550909,1750318238606,-500.0,0.00021497,2]
[366550910,1750318238618,-350.0,0.00021497,2]
[366550911,1750318238629,-500.0,0.00021497,2]
[366550912,1750318238639,-4072.0,0.000215,2]
[366550913,1750318238649,-208.3857422,0.000215,2]
[366550914,1750318238659,-179.6707803,0.000215,2]
[366550915,1750318238677,-618.9127385,0.000215,2]
[366550916,1750318238687,-854.53,0.00021588,2]
[366550917,1750318238696,-160.0,0.0002162,2]
[366550918,1750318238706,-424.78309573,0.0002162,2]
[366550919,1750318238716,-845.93775772,0.0002162,2]
[366550920,1750318238902,-250.0,0.00021644,2]
[366550921,1750318238912,-365.6169836,0.000219,2]
[366550922,1750318238922,-310.3834104,0.000219,6]
[366550923,1750318238932,-308.28,0.00021907,3]
[366550924,1750318238942,-154.14,0.00021907,3]
[366550925,1750318238952,-462.45,0.00021907,3]
[366550926,1750318238961,-216.75,0.00021907,10]
[366550927,1750318238971,-180.63,0.00021907,10]
[366550928,1750318238980,-218.72761167,0.00021915,2]
[366550929,1750318238990,-371.24379111,0.00021917,6]
[366550930,1750318239000,-460.0,0.00021917,6]
[366550931,1750318239010,-472.71778262,0.00021917,6]
[366550932,1750318239020,-460.0,0.00021917,6]
[366550933,1750318239029,-391.21771679,0.00021917,6]
[366550934,1750318239039,-460.0,0.00021917,6]
[366550935,1750318239048,-557.21968536,0.00021917,6]
[366550936,1750318239058,-460.0,0.00021917,6]
[366550937,1750318239067,-431.62616798,0.00021917,6]
[366550938,1750318239077,-453.24884001,0.00021917,6]
[366550939,1750318239087,-436.18090187,0.00021917,6]
[366550940,1750318239096,-48.21042448,0.00021917,6]
[366550941,1750318239113,-361.15805969,0.00021917,6]
[366550942,1750318239122,-425.9817609,0.00021917,6]
[366550943,1750318239132,-390.82193931,0.00021917,6]
[366550944,1750318239142,-460.0,0.00021917,6]
[366550945,1750318239151,-460.0,0.00021917,6]
[366550946,1750318239160,-467.25422191,0.00021917,6]
[366550947,1750318239170,-380.89633906,0.00021917,6]
[366550948,1750318239179,-453.09,0.00021917,6]
[366550949,1750318239189,-451.05341154,0.00021917,6]